fUST/lending_fUST_20241226
["ID","MTS","AMOUNT","RATE_DAILY","PERIOD"]
[346695676,1735200436284,-500.0,0.00014528,2]
[346695677,1735200436305,-500.0,0.00014528,2]
[346695678,1735200436324,-500.0,0.00014529,2]
[346695679,1735200436344,-300.0,0.00014801,2]
[346695680,1735200436364,-300.0,0.00014801,2]
[346695681,1735200436385,-500.0,0.00014802,2]
[346695682,1735200436406,-500.0,0.00014802,2]
[346695683,1735200436427,-500.0,0.00014803,2]
[346695684,1735200436446,-150.0,0.00014827,2]
[346695685,1735200436467,-500.0,0.00015076,2]
[346695686,1735200436489,-42.33552093,0.00015076,2]
[346695688,1735200452095,-457.66447907,0.00015076,2]
[346695689,1735200452121,-500.0,0.00015077,2]
[346695690,1735200452146,-500.0,0.0001535,2]
[346695691,1735200452169,-500.0,0.0001535,2]
[346695692,1735200452195,-500.0,0.00015351,2]
[346695693,1735200452218,-461.0,0.000155,5]
[346695694,1735200452240,-357.66688492,0.00015622,2]
[346695695,1735200452261,-871.33,0.00015623,2]
[346695696,1735200452283,-641.11501594,0.00015623,2]
[346695697,1735200452305,-500.0,0.00015623,2]
[346695698,1735200452326,-500.0,0.00015623,2]
[346695699,1735200452347,-778.06,0.00015623,2]
[346695700,1735200452368,-150.87183505,0.00015623,2]
[346695701,1735200452390,-500.0,0.00015624,2]
[346695702,1735200452412,-500.0,0.00015624,2]
[346695703,1735200452439,-2000.0,0.00015624,2]
[346695704,1735200452459,-500.0,0.00015625,2]
[346695705,1735200452481,-186.9589658,0.00015726,2]
[346695706,1735200452502,-461.80480634,0.00015797,2]
[346695707,1735200452524,-871.33,0.00015897,2]
[346695708,1735200452549,-500.0,0.00015897,2]
[346695709,1735200452571,-500.0,0.00015897,2]
[346695710,1735200452592,-500.0,0.00015897,2]
[346695711,1735200452614,-778.06,0.00015897,2]
[346695712,1735200452635,-500.0,0.00015898,2]
[346695713,1735200452658,-500.0,0.00015898,2]
[346695714,1735200452678,-2000.0,0.00015898,2]
[346695715,1735200452701,-500.0,0.00015899,2]
[346695716,1735200452722,-500.71577802,0.00015999,2]
[346695717,1735200452742,-871.33,0.00016171,2]
[346695718,1735200452765,-500.0,0.00016171,2]
[346695719,1735200452787,-500.0,0.00016171,2]
[346695720,1735200452809,-500.0,0.00016171,2]
[346695721,1735200452831,-778.06,0.00016171,2]
[346695722,1735200452852,-215.274,0.00016172,2]
[346695723,1735200452873,-500.0,0.00016172,2]
[346695724,1735200452896,-500.0,0.00016172,2]
[346695725,1735200452917,-872.99052013,0.00016172,2]
[346695726,1735200452942,-500.0,0.00016173,2]
[346695727,1735200452962,-352.3236556,0.00016274,2]
[346695728,1735200452983,-352.3236556,0.00016274,2]
[346695729,1735200453003,-352.3236556,0.00016274,2]
[346695730,1735200453023,-244.8850771,0.00016274,2]
[346695731,1735200453049,-300.0,0.00016281,2]
[346695732,1735200453073,-461.80480632,0.00016287,2]
[346695733,1735200453096,-9681.87272143,0.00016397,2]
[346695734,1735200453120,-263.07915807,0.00016437,2]
[346695766,1735200631801,-488.0,0.0001398,2]
[346695767,1735200631812,-12.0,0.0001398,2]
[346695768,1735200631822,-500.0,0.0001398,2]
[346695769,1735200631832,-500.0,0.00014254,2]
[346695770,1735200631841,-500.0,0.00014254,2]
[346695771,1735200631851,-500.0,0.00014528,2]
[346695772,1735200631860,-500.0,0.00014528,2]
[346695773,1735200631870,-627.38,0.000146,2]
[346695774,1735200631879,-500.0,0.00014802,2]
[346695776,1735200631889,-500.0,0.00014802,2]
[346695778,1735200631898,-429.35755532,0.000149,2]
[346695779,1735200631910,-429.35755532,0.000149,2]
[346695781,1735200631919,-500.0,0.00015076,2]
[346695783,1735200631928,-500.0,0.00015076,2]
[346695785,1735200631937,-502.25290807,0.00015349,2]
[346695787,1735200631947,-500.0,0.0001535,2]
[346695790,1735200631957,-500.0,0.0001535,2]
[346695791,1735200631966,-500.0,0.00015622,2]
[346695794,1735200631977,-307.55923725,0.00015622,2]
[346695795,1735200631986,-680.81,0.00015622,2]
[346695799,1735200631996,-500.0,0.00015623,2]
[346695801,1735200632005,-500.0,0.00015624,2]
[346695805,1735200632015,-500.0,0.00015624,2]
[346695806,1735200632025,-500.0,0.00015624,2]
[346695807,1735200632034,-500.0,0.00015896,2]
[346695808,1735200632044,-680.81,0.00015896,2]
[346695809,1735200632053,-500.0,0.00015897,2]
[346695810,1735200632063,-500.0,0.00015898,2]
[346695811,1735200632073,-500.0,0.00015898,2]
[346695812,1735200632088,-500.0,0.00015898,2]
[346695813,1735200632098,-500.0,0.0001617,2]
[346695814,1735200632107,-680.81,0.0001617,2]
[346695815,1735200632117,-500.0,0.00016171,2]
[346695816,1735200632128,-500.0,0.00016172,2]
[346695817,1735200632137,-500.0,0.00016172,2]
[346695818,1735200632147,-346.35360474,0.00016339,2]
[346695819,1735200632157,-1200.0,0.00016437,2]
[346695820,1735200632171,-1252.39,0.00016438,2]
[346695821,1735200632180,-200.0,0.00016438,2]
[346695822,1735200632190,-200.0,0.00016438,2]
[346695823,1735200632199,-200.0,0.00016438,2]
[346695824,1735200632209,-474.0,0.00016438,4]
[346695825,1735200632218,-1386.17,0.00016438,2]
[346695826,1735200632228,-986.54913931,0.00016438,2]
[346695868,1735200637850,-399.62086069,0.00016438,2]
[346695869,1735200637861,-1386.17,0.00016438,2]
[346695870,1735200637872,-1386.17,0.00016438,2]
[346695871,1735200637883,-1386.17,0.00016438,2]
[346695872,1735200637893,-1386.17,0.00016438,2]
[346695874,1735200637904,-1386.17,0.00016438,2]
[346695876,1735200637917,-1386.17,0.00016438,2]
[346695878,1735200637927,-398.35901933,0.00016438,2]
[346695880,1735200637940,-987.81098067,0.00016438,2]
[346695882,1735200637951,-500.0,0.00016444,2]
[346695884,1735200637961,-680.81,0.00016444,2]
[346695886,1735200637972,-871.33,0.00016445,2]
[346695889,1735200637983,-200.0,0.00016445,2]
[346695891,1735200637994,-500.0,0.00016445,2]
[346695893,1735200638004,-1386.17,0.00016446,2]
[346695895,1735200638014,-500.0,0.00016446,2]
[346695897,1735200638024,-500.0,0.00016446,2]
[346695899,1735200638035,-153.0000001,0.00016548,2]
[346695901,1735200638045,-306.0,0.00016548,2]
[346695904,1735200638055,-153.4414212,0.00016548,2]
[346695906,1735200638067,-153.4414212,0.00016548,2]
[346695908,1735200638082,-153.0,0.00016548,2]
[346695910,1735200638092,-153.2778409,0.00016548,2]
[346695912,1735200638103,-153.0,0.00016548,2]
[346695914,1735200638114,-443.08226567,0.00016712,5]
[346695917,1735200638127,-30.91773433,0.00016712,5]
[346695919,1735200638138,-500.0,0.00016718,2]
[346695921,1735200638149,-680.81,0.00016718,2]
[346695924,1735200638162,-871.33,0.00016719,2]
[346695926,1735200638173,-200.0,0.00016719,2]
[346695928,1735200638183,-500.0,0.00016719,2]
[346695930,1735200638194,-1386.17,0.0001672,2]
[346695932,1735200638205,-500.0,0.0001672,2]
[346695934,1735200638216,-500.0,0.0001672,2]
[346695937,1735200638227,-346.35360474,0.00016752,2]
[346695939,1735200638238,-9681.87272144,0.00016952,2]
[346695941,1735200638249,-474.0,0.00016986,5]
[346695943,1735200638259,-500.0,0.00016992,2]
[346695945,1735200638270,-418.41895953,0.00016992,2]
[346695948,1735200638283,-262.39104047,0.00016992,2]
[346695950,1735200638295,-871.33,0.00016993,2]
[346695958,1735200638304,-105.95467187,0.00016993,2]
[346695961,1735200638443,-94.04532813,0.00016993,2]
[346695962,1735200638453,-500.0,0.00016993,2]
[346695963,1735200638463,-259.43985824,0.00016993,2]
[346695964,1735200638472,-500.0,0.00016993,2]
[346695965,1735200638481,-500.0,0.00016993,2]
[346695966,1735200638491,-500.0,0.00016993,2]
[346695967,1735200638499,-169.57109915,0.00016993,2]
[346695968,1735200638508,-1386.17,0.00016994,2]
[346695970,1735200638518,-455.9,0.00016994,2]
[346695972,1735200638527,-500.0,0.00016994,2]
[346695973,1735200638538,-461.0,0.00017,6]
[346695975,1735200638548,-340.6301139,0.00017096,2]
[346695977,1735200638557,-678.0,0.000171,2]
[346695979,1735200638567,-346.35360474,0.00017164,2]
[346695980,1735200638576,-474.0,0.0001726,5]
[346695981,1735200638585,-500.0,0.00017266,2]
[346695982,1735200638594,-680.81,0.00017266,2]
[346695983,1735200638603,-871.33,0.00017267,2]
[346695984,1735200638612,-200.0,0.00017267,2]
[346695985,1735200638621,-500.0,0.00017267,2]
[346695986,1735200638631,-1386.17,0.00017268,2]
[346695987,1735200638640,-500.0,0.00017268,2]
[346695988,1735200638650,-474.0,0.00017534,6]
[346695989,1735200638659,-500.0,0.0001754,2]
[346695990,1735200638668,-680.81,0.0001754,2]
[346695991,1735200638678,-871.33,0.00017541,2]
[346695992,1735200638687,-200.0,0.00017541,2]
[346695993,1735200638696,-500.0,0.00017541,2]
[346695994,1735200638705,-1386.17,0.00017542,2]
[346695995,1735200638714,-500.0,0.00017542,2]
[346695996,1735200638724,-346.35360474,0.00017577,2]
[346695997,1735200638733,-1089.113967,0.000177,2]
[346695998,1735200638742,-1252.39,0.00017808,4]
[346695999,1735200638752,-474.0,0.00017808,6]
[346696000,1735200638761,-500.0,0.00017814,2]
[346696001,1735200638771,-680.81,0.00017814,2]
[346696002,1735200638779,-871.33,0.00017815,2]
[346696003,1735200638789,-200.0,0.00017815,2]
[346696004,1735200638799,-500.0,0.00017815,2]
[346696005,1735200638810,-1386.17,0.00017816,2]
[346696006,1735200638819,-630.46505716,0.00017816,2]
[346696007,1735200638829,-237.6617238,0.0001782,2]
[346696008,1735200638838,-562.60108818,0.00017973,2]
[346696009,1735200638848,-500.0,0.00017973,2]
[346696010,1735200638857,-500.0,0.00017973,2]
[346696011,1735200638867,-500.0,0.00017973,2]
[346696012,1735200638877,-566.15485545,0.00017973,2]
[346696013,1735200638886,-346.35360474,0.0001799,2]
[346696014,1735200638896,-224.99637572,0.00017999,2]
[346696015,1735200638906,-37041.8350279,0.00018,2]
[346696016,1735200638928,-475.67,0.00018,2]
[346696017,1735200638940,-266420.62181,0.00018,2]
[346696018,1735200638951,-29250.71376219,0.00018,2]
[346696019,1735200638960,-237.29,0.00018,2]
[346696020,1735200638969,-237.29,0.00018,2]
[346696021,1735200638979,-237.29,0.00018,2]
[346696022,1735200638988,-198.41277719,0.00018073,2]
[346696023,1735200638997,-269.59399617,0.00018073,2]
[346696024,1735200639007,-500.0,0.00018073,2]
[346696025,1735200639016,-514.57087701,0.00018073,2]
[346696026,1735200639025,-474.0,0.00018082,6]
[346696027,1735200639035,-500.0,0.00018088,2]
[346696028,1735200639044,-680.81,0.00018088,2]
[346696029,1735200639053,-871.33,0.00018089,2]
[346696030,1735200639063,-200.0,0.00018089,2]
[346696031,1735200639076,-500.0,0.00018089,2]
[346696032,1735200639085,-1386.17,0.0001809,2]
[346696033,1735200639095,-151.0,0.00018092,2]
[346696034,1735200639104,-2000.0,0.000181,2]
[346696035,1735200639114,-150.0,0.000181,2]
[346696036,1735200639124,-500.0,0.00018192,2]
[346696037,1735200639134,-500.0,0.00018192,2]
[346696038,1735200639144,-500.0,0.00018192,2]
[346696039,1735200639154,-150.90454147,0.00018192,2]
[346696040,1735200639165,-150.0,0.00018192,2]
[346696041,1735200639174,-150.0,0.00018192,2]
[346696042,1735200639183,-500.0,0.00018192,2]
[346696043,1735200639192,-150.0,0.00018192,2]
[346696044,1735200639201,-150.0,0.00018192,2]
[346696045,1735200639211,-500.0,0.00018192,2]
[346696046,1735200639220,-150.0,0.00018192,2]
[346696047,1735200639229,-184.86074534,0.00018192,2]
[346696048,1735200639239,-500.0,0.00018192,2]
[346696049,1735200639248,-500.0,0.00018192,2]
[346696050,1735200639258,-150.0,0.00018192,2]
[346696051,1735200639267,-500.0,0.00018192,2]
[346696053,1735200639276,-500.0,0.00018192,2]
[346696054,1735200639286,-500.0,0.00018192,2]
[346696055,1735200639296,-203.29648914,0.00018192,2]
[346696056,1735200639306,-159.29976169,0.00018192,2]
[346696057,1735200639315,-500.0,0.00018192,2]
[346696058,1735200639327,-165.61209826,0.00018192,2]
[346696059,1735200639337,-172.7884277,0.00018192,2]
[346696060,1735200639346,-150.0,0.00018192,2]
[346696061,1735200639357,-11759.19,0.000182,2]
[346696062,1735200639367,-37325.65,0.000182,2]
[346696063,1735200639377,-28158.58,0.000182,2]
[346696064,1735200639387,-151.0,0.000182,2]
[346696066,1735200639397,-1000.0,0.000182,2]
[346696068,1735200639407,-151.0,0.000182,2]
[346696070,1735200639418,-1999.0,0.00018246,5]
[346696072,1735200639428,-1999.0,0.00018246,5]
[346696074,1735200639439,-1999.0,0.00018246,5]
[346696076,1735200639451,-1999.0,0.00018246,5]
[346696079,1735200639461,-1999.0,0.00018246,5]
[346696081,1735200639471,-1999.0,0.00018246,5]
[346696083,1735200639481,-1999.0,0.00018246,5]
[346696085,1735200639492,-1999.0,0.00018246,5]
[346696087,1735200639502,-1999.0,0.00018246,5]
[346696089,1735200639511,-1999.0,0.00018246,5]
[346696090,1735200639521,-1999.0,0.00018246,5]
[346696092,1735200639531,-1999.0,0.00018246,5]
[346696094,1735200639540,-1999.0,0.00018246,5]
[346696096,1735200639551,-1999.0,0.00018246,5]
[346696098,1735200639560,-1999.0,0.00018246,5]
[346696100,1735200639570,-834.9452576,0.00018246,5]
[346696102,1735200639580,-474.0,0.00018356,6]
[346696104,1735200639590,-500.0,0.00018362,2]
[346696106,1735200639601,-680.81,0.00018362,2]
[346696108,1735200639611,-871.33,0.00018363,2]
[346696110,1735200639622,-200.0,0.00018363,2]
[346696112,1735200639632,-500.0,0.00018363,2]
[346696114,1735200639641,-1386.17,0.00018364,2]
[346696117,1735200639651,-5345.02781489,0.000184,2]
[346696120,1735200639663,-5345.02781489,0.000184,2]
[346696122,1735200639675,-5345.02781489,0.000184,2]
[346696124,1735200639685,-5345.02781489,0.000184,2]
[346696127,1735200639694,-5345.02781489,0.000184,2]
[346696129,1735200639703,-5345.02781489,0.000184,2]
[346696132,1735200639713,-2329.92437696,0.000184,2]
[346696135,1735200639726,-430.4144,0.000184,2]
[346696138,1735200639738,-2584.68903793,0.000184,2]
[346696141,1735200639747,-5345.02781489,0.000184,2]
[346696144,1735200639757,-5345.02781489,0.000184,2]
[346696147,1735200639768,-5345.02781489,0.000184,2]
[346696150,1735200639777,-5345.02781489,0.000184,2]
[346696153,1735200639787,-5345.02781489,0.000184,2]
[346696156,1735200639797,-5345.02781489,0.000184,2]
[346696159,1735200639807,-5345.02781489,0.000184,2]
[346696162,1735200639816,-5345.02781489,0.000184,2]
[346696165,1735200639826,-5345.02781489,0.000184,2]
[346696168,1735200639837,-5345.02781489,0.000184,2]
[346696171,1735200639847,-5345.02781489,0.000184,2]
[346696174,1735200639856,-5345.02781489,0.000184,2]
[346696176,1735200639866,-5345.02,0.000184,2]
[346696178,1735200639875,-2996.21512124,0.000184,2]
[346696180,1735200639885,-2996.21512124,0.000184,2]
[346696182,1735200639894,-2996.21512124,0.000184,2]
[346696185,1735200639903,-2996.21512124,0.000184,2]
[346696187,1735200639917,-2996.21512124,0.000184,2]
[346696189,1735200639927,-2996.21512124,0.000184,2]
[346696191,1735200639938,-2996.21512124,0.000184,2]
[346696193,1735200639948,-2996.21512124,0.000184,2]
[346696196,1735200639960,-2996.21512124,0.000184,2]
[346696199,1735200639970,-2996.21512124,0.000184,2]
[346696201,1735200639979,-2996.21512124,0.000184,2]
[346696204,1735200639989,-2996.21512124,0.000184,2]
[346696206,1735200639999,-2996.21512124,0.000184,2]
[346696208,1735200640009,-2996.21512124,0.000184,2]
[346696210,1735200640018,-2996.21512124,0.000184,2]
[346696212,1735200640028,-2996.21512124,0.000184,2]
[346696214,1735200640038,-2996.21512124,0.000184,2]
[346696216,1735200640048,-2996.21512124,0.000184,2]
[346696218,1735200640058,-2996.21512124,0.000184,2]
[346696220,1735200640068,-2996.21,0.000184,2]
[346696223,1735200640084,-160.56601864,0.000184,2]
[346696225,1735200640095,-160.56601864,0.000184,2]
[346696227,1735200640107,-160.56601864,0.000184,2]
[346696229,1735200640116,-160.56601864,0.000184,2]
[346696232,1735200640129,-160.56601864,0.000184,2]
[346696235,1735200640138,-160.56601864,0.000184,2]
[346696237,1735200640149,-160.56601864,0.000184,2]
[346696239,1735200640173,-160.56601864,0.000184,2]
[346696241,1735200640183,-160.56,0.000184,2]
[346696243,1735200640192,-346.35360474,0.00018403,2]
[346696245,1735200640202,-7857.0719576,0.00018418,2]
[346696247,1735200640212,-5000.0,0.00018418,2]
[346696249,1735200640222,-5000.0,0.00018418,2]
[346696251,1735200640232,-5000.0,0.00018418,2]
[346696253,1735200640242,-5000.0,0.00018418,2]
[346696255,1735200640252,-500.0,0.00018466,2]
[346696257,1735200640262,-500.0,0.00018466,2]
[346696259,1735200640274,-500.0,0.00018466,2]
[346696261,1735200640284,-150.0,0.00018466,2]
[346696262,1735200640296,-150.0,0.00018466,2]
[346696263,1735200640306,-621.0872902,0.00018466,2]
[346696264,1735200640316,-150.0,0.00018466,2]
[346696265,1735200640326,-150.0,0.00018466,2]
[346696266,1735200640336,-500.0,0.00018466,2]
[346696267,1735200640346,-500.0,0.00018466,2]
[346696268,1735200640355,-500.0,0.00018466,2]
[346696269,1735200640365,-500.0,0.00018466,2]
[346696270,1735200640375,-707.56266389,0.00018466,2]
[346696271,1735200640384,-500.0,0.00018466,2]
[346696272,1735200640394,-525.59565446,0.00018466,2]
[346696273,1735200640404,-154.79135773,0.00018466,2]
[346696274,1735200640423,-1748.10920251,0.000185,2]
[346696275,1735200640518,-88208.12689679,0.000185,2]
[346696276,1735200640528,-461.0,0.000185,7]
[346696277,1735200640538,-775.00329077,0.00018521,2]
[346696278,1735200640548,-1000.0,0.00018521,2]
[346696279,1735200640558,-1030.90342573,0.00018521,2]
[346696280,1735200640568,-666.0,0.0001853,2]
[346696281,1735200640578,-1000.0,0.00018621,2]
[346696282,1735200640587,-474.0,0.0001863,7]
[346696283,1735200640597,-500.0,0.0001863,2]
[346696284,1735200640607,-500.0,0.0001863,2]
[346696285,1735200640617,-500.0,0.0001863,2]
[346696286,1735200640626,-626.3167326,0.0001863,2]
[346696287,1735200640637,-500.0,0.00018636,2]
[346696288,1735200640647,-680.81,0.00018636,2]
[346696289,1735200640657,-871.33,0.00018637,2]
[346696290,1735200640671,-200.0,0.00018637,2]
[346696291,1735200640680,-500.0,0.00018637,2]
[346696292,1735200640690,-1386.17,0.00018638,2]
[346696293,1735200640700,-4515.65,0.000187,2]
[346696294,1735200640709,-1000.0,0.000187,2]
[346696295,1735200640719,-500.0,0.0001874,2]
[346696296,1735200640728,-500.0,0.0001874,2]
[346696297,1735200640738,-606.63287877,0.0001874,2]
[346696298,1735200640747,-150.0,0.0001874,2]
[346696299,1735200640757,-150.0,0.0001874,2]
[346696300,1735200640767,-239.14874163,0.0001874,2]
[346696301,1735200640776,-273.08852619,0.0001874,2]
[346696302,1735200640786,-500.0,0.0001874,2]
[346696303,1735200640796,-500.0,0.0001874,2]
[346696304,1735200640806,-500.0,0.0001874,2]
[346696305,1735200640815,-500.0,0.0001874,2]
[346696306,1735200640825,-500.0,0.0001874,2]
[346696307,1735200640835,-403.5960274,0.000188,2]
[346696308,1735200640845,-5000.0,0.000188,2]
[346696309,1735200640854,-346.35360474,0.00018815,2]
[346696310,1735200640864,-17285.36422538,0.000189,2]
[346696392,1735200643002,-429.35755532,0.00014976,2]
[346696395,1735200643013,-2975.64244468,0.000189,2]
[346696398,1735200643025,-3800.0,0.000189,2]
[346696402,1735200643039,-12648.80047832,0.000189,2]
[346696404,1735200643051,-292.326,0.000189,2]
[346696406,1735200643068,-12121.5305973,0.000189,2]
[346696408,1735200643081,-151.0,0.000189,2]
[346696422,1735200643183,-17459.66886049,0.000189,2]
[346696425,1735200643196,-474.0,0.00018904,7]
[346696428,1735200643206,-151.0,0.00018904,7]
[346696431,1735200643216,-5000.0,0.00018904,7]
[346696434,1735200643225,-5000.0,0.00018904,7]
[346696437,1735200643235,-5000.0,0.00018904,7]
[346696440,1735200643246,-5000.0,0.00018904,7]
[346696443,1735200643256,-5000.0,0.00018904,7]
[346696446,1735200643265,-5000.0,0.00018904,7]
[346696449,1735200643274,-5000.0,0.00018904,7]
[346696451,1735200643283,-5000.0,0.00018904,7]
[346696453,1735200643293,-5000.0,0.00018904,7]
[346696455,1735200643303,-5000.0,0.00018904,7]
[346696457,1735200643313,-5000.0,0.00018904,7]
[346696459,1735200643323,-5000.0,0.00018904,7]
[346696461,1735200643332,-5000.0,0.00018904,7]
[346696463,1735200643341,-5000.0,0.00018904,7]
[346696465,1735200643351,-5000.0,0.00018904,7]
[346696467,1735200643360,-5000.0,0.00018904,7]
[346696469,1735200643370,-5000.0,0.00018904,7]
[346696470,1735200643380,-646.35171603,0.00018904,7]
[346696472,1735200643389,-500.0,0.0001891,2]
[346696474,1735200643399,-680.81,0.0001891,2]
[346696476,1735200643408,-871.33,0.00018911,2]
[346696478,1735200643421,-200.0,0.00018911,2]
[346696479,1735200643430,-500.0,0.00018911,2]
[346696481,1735200643439,-1386.17,0.00018912,2]
[346696483,1735200643449,-159.999999,0.00018984,4]
[346696485,1735200643459,-10051.33252041,0.0001899,2]
[346696487,1735200643470,-5000.0,0.00019,2]
[346696488,1735200643479,-600.0,0.00019,2]
[346696490,1735200643488,-150.0,0.00019,2]
[346696491,1735200643498,-302.9394212,0.00019,2]
[346696492,1735200643507,-302.84859387,0.00019,2]
[346696493,1735200643517,-500.0,0.00019014,2]
[346696494,1735200643526,-500.0,0.00019014,2]
[346696495,1735200643535,-172.75269198,0.00019014,2]
[346696496,1735200643544,-156.36050697,0.00019014,2]
[346696497,1735200643554,-682.57250207,0.00019014,2]
[346696498,1735200643563,-500.0,0.00019014,2]
[346696499,1735200643573,-500.0,0.00019014,2]
[346696500,1735200643582,-500.0,0.00019014,2]
[346696501,1735200643591,-500.0,0.00019014,2]
[346696502,1735200643600,-2000.0,0.000191,2]
[346696503,1735200643610,-3890.22780071,0.00019117,2]
[346696504,1735200643620,-500.0,0.00019138,14]
[346696505,1735200643629,-500.0,0.00019147,14]
[346696506,1735200643638,-3890.22780071,0.00019153,2]
[346696507,1735200643648,-500.0,0.00019156,14]
[346696508,1735200643657,-500.0,0.00019165,14]
[346696509,1735200643669,-500.0,0.00019174,14]
[346696510,1735200643678,-1252.39,0.00019178,6]
[346696511,1735200643688,-2002.63186659,0.00019178,60]
[346696512,1735200643698,-474.0,0.00019178,7]
[346696513,1735200643707,-151.0,0.00019178,7]
[346696514,1735200643716,-1750.02,0.00019178,2]
[346696515,1735200643725,-1750.02,0.00019178,2]
[346696516,1735200643735,-1750.02,0.00019178,2]
[346696517,1735200643744,-1750.02,0.00019178,2]
[346696518,1735200643755,-818.53496267,0.00019178,2]
[346696519,1735200643767,-931.48503733,0.00019178,2]
[346696520,1735200643776,-1750.02,0.00019178,2]
[346696521,1735200643785,-1218.49496267,0.00019178,2]
[346696522,1735200643930,-531.52503733,0.00019178,2]
[346696523,1735200643940,-778.73160167,0.00019178,2]
[346696524,1735200643954,-971.28839833,0.00019178,2]
[346696525,1735200643963,-1750.02,0.00019178,2]
[346696526,1735200643973,-1293.99379532,0.00019178,2]
[346696553,1735200646291,-571.47426395,0.00018452,2]
[346696554,1735200646300,-456.02620468,0.00019178,2]
[346696555,1735200646310,-1750.02,0.00019178,2]
[346696556,1735200646319,-1750.02,0.00019178,2]
[346696557,1735200646328,-1750.02,0.00019178,2]
[346696558,1735200646338,-1750.02,0.00019178,2]
[346696559,1735200646347,-1750.02,0.00019178,2]
[346696560,1735200646357,-1750.02,0.00019178,2]
[346696561,1735200646366,-1750.02,0.00019178,2]
[346696562,1735200646375,-1750.02,0.00019178,2]
[346696563,1735200646385,-1750.02,0.00019178,2]
[346696564,1735200646395,-500.0,0.00019178,2]
[346696565,1735200646404,-500.0,0.00019178,2]
[346696566,1735200646413,-500.0,0.00019178,2]
[346696567,1735200646427,-500.0,0.00019178,2]
[346696568,1735200646436,-500.0,0.00019178,2]
[346696569,1735200646447,-500.0,0.00019178,2]
[346696570,1735200646456,-500.0,0.00019178,2]
[346696571,1735200646466,-500.0,0.00019178,2]
[346696572,1735200646476,-500.0,0.00019178,2]
[346696573,1735200646485,-500.0,0.00019178,2]
[346696574,1735200646495,-241.37807808,0.00019178,2]
[346696575,1735200646505,-390.53525,0.00019178,2]
[346696576,1735200646514,-12803.4709906,0.00019178,11]
[346696577,1735200646524,-500.0,0.00019182,14]
[346696578,1735200646534,-500.0,0.00019184,2]
[346696579,1735200646544,-680.81,0.00019184,2]
[346696580,1735200646553,-871.33,0.00019185,2]
[346696581,1735200646563,-200.0,0.00019185,2]
[346696582,1735200646572,-500.0,0.00019185,2]
[346696583,1735200646581,-1386.17,0.00019186,2]
[346696584,1735200646591,-1750.02,0.00019186,2]
[346696585,1735200646600,-3890.22780071,0.00019189,2]
[346696586,1735200646609,-302.9394212,0.0001919,2]
[346696587,1735200646618,-302.84859387,0.0001919,2]
[346696588,1735200646628,-500.0,0.00019191,14]
[346696589,1735200646637,-500.0,0.000192,14]
[346696590,1735200646647,-1000.0,0.000192,2]
[346696591,1735200646657,-220.2,0.000192,31]
[346696592,1735200646670,-220.2,0.000192,31]
[346696593,1735200646679,-220.2,0.000192,31]
[346696594,1735200646689,-220.2,0.000192,31]
[346696595,1735200646699,-220.2,0.000192,31]
[346696596,1735200646708,-220.2,0.000192,31]
[346696597,1735200646718,-220.2,0.000192,31]
[346696598,1735200646727,-220.2,0.000192,31]
[346696599,1735200646737,-220.2,0.000192,31]
[346696600,1735200646746,-220.2,0.000192,31]